fUST/lending_fUST_20250713
["ID","MTS","AMOUNT","RATE_DAILY","PERIOD"]
[371711131,1752397850792,-152.0,0.00022993,3]
[371711132,1752397850801,-152.0,0.00022993,3]
[371711133,1752397850810,-318.0,0.00022993,3]
[371711134,1752397850820,-152.0,0.00022993,3]
[371711135,1752397850829,-283.48231727,0.00022993,3]
[371711136,1752397850839,-152.0,0.00022993,3]
[371711137,1752397850849,-152.0,0.00022993,3]
[371711138,1752397850859,-318.0,0.00022993,3]
[371711139,1752397850868,-318.0,0.00022993,3]
[371711140,1752397850878,-152.0,0.00022993,3]
[371711141,1752397850887,-318.0,0.00022993,3]
[371711142,1752397850897,-152.0,0.00022993,3]
[371711143,1752397850906,-152.0,0.00022993,3]
[371711144,1752397850916,-152.0,0.00022993,3]
[371711145,1752397850925,-152.0,0.00022993,3]
[371711146,1752397850934,-152.0,0.00022993,3]
[371711147,1752397850944,-152.0,0.00022993,3]
[371711148,1752397850953,-152.0,0.00022993,3]
[371711149,1752397850963,-152.0,0.00022993,3]
[371711150,1752397850973,-152.0,0.00022993,3]
[371711151,1752397850983,-152.0,0.00022993,3]
[371711152,1752397850992,-152.0,0.00022993,3]
[371711153,1752397851002,-152.0,0.00022993,3]
[371711154,1752397851011,-152.0,0.00022993,3]
[371711155,1752397851021,-152.0,0.00022993,3]
[371711156,1752397851031,-152.0,0.00022993,3]
[371711157,1752397851040,-152.0,0.00022993,3]
[371711158,1752397851050,-152.0,0.00022993,3]
[371711159,1752397851059,-152.0,0.00022993,3]
[371711160,1752397851069,-152.0,0.00022993,3]
[371711161,1752397851078,-152.0,0.00022993,3]
[371711162,1752397851087,-152.0,0.00022993,3]
[371711163,1752397851096,-152.0,0.00022993,3]
[371711164,1752397851106,-152.0,0.00022993,3]
[371711165,1752397851115,-152.0,0.00022993,3]
[371711166,1752397851124,-152.0,0.00022993,3]
[371711167,1752397851133,-152.0,0.00022993,3]
[371711168,1752397851142,-152.0,0.00022993,3]
[371711169,1752397851152,-152.0,0.00022993,3]
[371711170,1752397851161,-152.0,0.00022993,3]
[371711171,1752397851170,-152.0,0.00022993,3]
[371711172,1752397851180,-152.0,0.00022993,3]
[371711173,1752397851190,-152.0,0.00022993,3]
[371711174,1752397851199,-152.0,0.00022993,3]
[371711175,1752397851208,-152.0,0.00022993,3]
[371711176,1752397851217,-152.0,0.00022993,3]
[371711177,1752397851227,-153.6605469,0.00022993,3]
[371711178,1752397851237,-192.7,0.00022993,6]
[371711179,1752397851246,-160.0,0.00023,3]
[371711180,1752397851255,-408.22341326,0.00023,5]
[371711181,1752397851265,-160.0,0.00023,3]
[371711182,1752397851275,-160.0,0.00023,3]
[371711183,1752397851400,-160.0,0.00023,3]
[371711184,1752397851410,-160.0,0.00023,3]
[371711185,1752397851419,-1811.82,0.00023,2]
[371711186,1752397851429,-1334.237315,0.00023,2]
[371711187,1752397851438,-838.53376533,0.00023,3]
[371711188,1752397851447,-215.42595214,0.00023,3]
[371711189,1752397851456,-230.68503973,0.00023,3]
[371711190,1752397851465,-330.95358678,0.00023,2]
[371711191,1752397851475,-3757.86,0.00023,7]
[371711192,1752397851487,-156.411711,0.00023,5]
[371711193,1752397851496,-155.0,0.00023,2]
[371711194,1752397851506,-170.0,0.00023,7]
[371711195,1752397851515,-233.40255084,0.00023014,8]
[371711196,1752397851526,-3908.30138619,0.00023107,8]
[371711197,1752397851535,-203.0,0.0002326,2]
[371711198,1752397851545,-319.2951556,0.0002326,2]
[371711199,1752397851555,-576.5770021,0.0002326,2]
[371711200,1752397851564,-576.5770021,0.0002326,2]
[371711201,1752397851573,-576.5770021,0.0002326,2]
[371711202,1752397851583,-576.5770021,0.0002326,2]
[371711203,1752397851592,-1151.2331116,0.0002326,2]
[371711204,1752397851601,-200.28584847,0.00023288,2]
[371711205,1752397851612,-151.0,0.00023288,2]
[371711206,1752397851621,-151.0,0.00023315,2]
[371711207,1752397851631,-218.87400646,0.00023343,2]
[371711208,1752397851642,-4000.0,0.00023345,4]
[371711209,1752397851651,-170.0,0.00023374,7]
[371711210,1752397851660,-2054.36,0.00023393,2]
[371711211,1752397851670,-167.062695,0.00023406,3]
[371711212,1752397851680,-3908.30138619,0.00023417,9]
[371711213,1752397851689,-874.0,0.00023457,2]
[371711214,1752397851698,-192.7,0.0002347,6]
[371711215,1752397851707,-231.28369723,0.000235,2]
[371711216,1752397851717,-155.0,0.00023548,2]
[371711217,1752397851726,-203.0,0.0002359,2]
[371711218,1752397851735,-151.0,0.000236,8]
[371711219,1752397851745,-1153.9,0.000237,7]
[371711220,1752397851755,-24639.08,0.000237,2]
[371711221,1752397851765,-3908.30138619,0.00023728,9]
[371711222,1752397851775,-154.849508,0.00023732,2]
[371711223,1752397851785,-1004.12,0.000238,6]
[371711224,1752397851795,-196.87336587,0.00023861,2]
[371711225,1752397851805,-191.97668805,0.000239,2]
[371711226,1752397851814,-203.0,0.0002392,2]
[371711227,1752397851824,-210.0,0.0002392,2]
[371711228,1752397851833,-192.7,0.00023947,7]
[371711229,1752397851844,-19681.64158912,0.00024,3]
[371711230,1752397908515,17719.5075413,0.00016238,2]
[371711231,1752397908544,20000.0,0.00016238,2]
[371711232,1752397908569,20000.0,0.00016238,2]
[371711233,1752397908596,20000.0,0.00016238,2]
[371711234,1752397908623,20000.0,0.00016238,2]
[371711235,1752397908647,20000.0,0.00016238,2]
[371711236,1752397908673,20000.0,0.00016238,2]
[371711237,1752397908697,20000.0,0.00016238,2]
[371711238,1752397908722,20000.0,0.00016238,2]
[371711239,1752397908747,20000.0,0.00016238,2]
[371711240,1752397908771,20000.0,0.00016238,2]
[371711241,1752397908795,20000.0,0.00016238,2]
[371711242,1752397908820,1113.80280911,0.00016238,2]
[371711243,1752398014572,189.125299,0.00015945,2]
[371711244,1752398014946,156.17965889,0.00016114,2]
[371711245,1752398070181,18540.892233,0.00016238,2]
[371711246,1752398070205,20000.0,0.00016238,2]
[371711247,1752398070231,20000.0,0.00016238,2]
[371711248,1752398070254,20000.0,0.00016238,2]
[371711249,1752398070277,20000.0,0.00016238,2]
[371711250,1752398070300,20000.0,0.00016238,2]
[371711251,1752398070323,20000.0,0.00016238,2]
[371711252,1752398070345,20000.0,0.00016238,2]
[371711253,1752398070368,20000.0,0.00016238,2]
[371711254,1752398070390,20000.0,0.00016238,2]
[371711255,1752398070412,20000.0,0.00016238,2]
[371711256,1752398070433,20000.0,0.00016238,2]
[371711257,1752398070456,608.84276238,0.00016238,2]
[371711258,1752398165931,308.05306772,0.00016267,2]
[371711259,1752398251459,11877.7678633,0.0001549,2]
[371711260,1752398315035,7205.3363066,0.00015446,2]
[371711261,1752398315059,4126.3846702,0.00015446,2]
[371711262,1752398316164,439.183844,0.00015875,2]
[371711263,1752398316526,867.29281308,0.00015876,2]
[371711264,1752398316942,361.56738,0.00015943,2]
[371711265,1752398317301,252.86271654,0.00015944,2]
[371711266,1752398352975,156.89114199,7.5e-07,2]
[371711267,1752398353069,156.89114199,7.5e-07,2]
[371711268,1752398353170,156.89114199,7.5e-07,2]
[371711269,1752398353274,156.89114199,7.5e-07,2]
[371711270,1752398353375,156.89114199,7.5e-07,2]
[371711271,1752398353572,156.89114199,7.5e-07,2]
[371711272,1752398353691,156.89114199,7.5e-07,2]
[371711273,1752398353837,156.89114199,7.5e-07,2]
[371711274,1752398370186,208.45845425,0.00016159,2]
[371711275,1752398403169,4835.0,0.000163,2]
[371711279,1752398427802,545.7427421,0.00015445,2]
[371711280,1752398434526,165.32388269,0.00016267,2]
[371711281,1752398470106,500.0,0.00010959,30]
[371711282,1752398470611,500.0,0.00010959,30]
[371711283,1752398471082,500.0,0.00010959,30]
[371711284,1752398471558,220.28742228,0.00010959,30]
[371711285,1752398487602,-218.49887012,0.000163,2]
[371711286,1752398511943,6943.05436122,0.00015408,2]
[371711287,1752398511966,14008.87608908,0.00015408,2]
[371711288,1752398564618,1572.1665784,0.00015413,2]
[371711289,1752398590205,-488.83674576,0.000163,2]
[371711290,1752398590234,-202.13304037,0.00016338,2]
[371711291,1752398590263,-1822.0,0.00016366,2]
[371711292,1752398590292,-3733.1373628,0.00016367,2]
[371711293,1752398590322,-300.0,0.00016434,2]
[371711294,1752398590353,-1200.0,0.00016435,2]
[371711295,1752398590382,-1200.0,0.00016435,2]
[371711296,1752398590410,-300.0,0.00016436,2]
[371711297,1752398590438,-300.0,0.00016436,2]
[371711298,1752398590468,-447.78570214,0.00016438,2]
[371711299,1752398590615,-12.21429786,0.00016438,2]
[371711300,1752398590644,-460.0,0.00016438,2]
[371711301,1752398590674,-460.0,0.00016438,2]
[371711302,1752398590709,-460.0,0.00016438,2]
[371711303,1752398590738,-460.0,0.00016438,2]
[371711304,1752398590930,-460.0,0.00016438,2]
[371711305,1752398590964,-460.0,0.00016438,2]
[371711306,1752398590994,-460.0,0.00016438,2]
[371711307,1752398591023,-460.0,0.00016438,2]
[371711308,1752398591053,-461.10771503,0.00016438,2]
[371711309,1752398591087,-460.0,0.00016438,2]
[371711310,1752398591119,-460.0,0.00016438,2]
[371711311,1752398591152,-460.0,0.00016438,2]
[371711312,1752398591186,-460.0,0.00016438,2]
[371711313,1752398591219,-460.0,0.00016438,2]
[371711314,1752398591248,-460.0,0.00016438,2]
[371711315,1752398591279,-492.81464405,0.00016438,2]
[371711316,1752398591308,-258.31,0.00016438,2]
[371711317,1752398591338,-460.0,0.00016438,2]
[371711318,1752398591368,-460.0,0.00016438,2]
[371711319,1752398591399,-460.0,0.00016438,2]
[371711320,1752398591432,-460.0,0.00016438,2]
[371711321,1752398591465,-460.0,0.00016438,2]
[371711322,1752398591636,-460.0,0.00016438,2]
[371711323,1752398591667,-460.0,0.00016438,2]
[371711324,1752398591698,-460.0,0.00016438,2]
[371711325,1752398591729,-460.0,0.00016438,2]
[371711326,1752398591761,-460.0,0.00016438,2]
[371711327,1752398591792,-460.0,0.00016438,2]
[371711328,1752398591823,-460.0,0.00016438,2]
[371711329,1752398591854,-460.0,0.00016438,2]
[371711330,1752398591883,-460.0,0.00016438,2]
[371711331,1752398591913,-460.0,0.00016438,2]
[371711332,1752398591944,-460.0,0.00016438,2]
[371711333,1752398591975,-460.0,0.00016438,2]
[371711334,1752398592006,-460.0,0.00016438,2]
[371711335,1752398592037,-460.0,0.00016438,2]
[371711336,1752398592067,-460.0,0.00016438,2]
[371711337,1752398592098,-460.0,0.00016438,2]
[371711338,1752398592128,-460.0,0.00016438,2]
[371711339,1752398592172,-462.18682,0.00016438,2]
[371711340,1752398592205,-460.0,0.00016438,2]
[371711341,1752398592234,-578.81319372,0.00016438,2]
[371711342,1752398592264,-460.0,0.00016438,2]
[371711343,1752398592392,-460.0,0.00016438,2]
[371711344,1752398592424,-460.0,0.00016438,2]
[371711345,1752398592456,-460.0,0.00016438,2]
[371711346,1752398592498,-460.0,0.00016438,2]
[371711347,1752398592533,-460.0,0.00016438,2]
[371711348,1752398592562,-460.0,0.00016438,2]
[371711349,1752398592593,-460.0,0.00016438,2]
[371711350,1752398592629,-460.0,0.00016438,2]
[371711351,1752398592659,-575.0,0.00016438,2]
[371711352,1752398592688,-460.0,0.00016438,2]
[371711353,1752398592718,-460.0,0.00016438,2]
[371711354,1752398592747,-460.0,0.00016438,2]
[371711355,1752398592782,-460.0,0.00016438,2]
[371711356,1752398592813,-460.0,0.00016438,2]
[371711357,1752398592843,-460.0,0.00016438,2]
[371711358,1752398592875,-460.0,0.00016438,2]
[371711359,1752398592905,-460.0,0.00016438,2]
[371711360,1752398592940,-460.0,0.00016438,2]
[371711361,1752398592972,-460.0,0.00016438,2]
[371711362,1752398593002,-460.0,0.00016438,2]
[371711363,1752398593032,-460.0,0.00016438,2]
[371711364,1752398593304,-460.0,0.00016438,2]
[371711365,1752398593334,-460.0,0.00016438,2]
[371711366,1752398593364,-460.0,0.00016438,2]
[371711367,1752398593394,-460.0,0.00016438,2]
[371711368,1752398593423,-460.0,0.00016438,2]
[371711369,1752398593454,-460.0,0.00016438,2]
[371711370,1752398593484,-460.0,0.00016438,2]
[371711371,1752398593514,-460.0,0.00016438,2]
[371711372,1752398593543,-460.0,0.00016438,2]
[371711373,1752398593572,-460.0,0.00016438,2]
[371711374,1752398593602,-460.0,0.00016438,2]
[371711375,1752398593632,-460.0,0.00016438,2]
[371711376,1752398593662,-460.0,0.00016438,2]
[371711377,1752398593694,-460.0,0.00016438,2]
[371711378,1752398593725,-460.0,0.00016438,2]
[371711379,1752398593755,-460.0,0.00016438,2]
[371711380,1752398593788,-460.0,0.00016438,2]
[371711381,1752398593819,-460.0,0.00016438,2]
[371711382,1752398593852,-460.0,0.00016438,2]
[371711383,1752398593883,-460.0,0.00016438,2]
[371711384,1752398593915,-780.33,0.00016438,2]
[371711385,1752398594128,-460.0,0.00016438,2]
[371711386,1752398594159,-460.0,0.00016438,2]
[371711387,1752398594190,-460.0,0.00016438,2]
[371711388,1752398594224,-460.0,0.00016438,2]
[371711389,1752398594255,-460.0,0.00016438,2]
[371711390,1752398594285,-460.0,0.00016438,2]
[371711391,1752398594316,-460.0,0.00016438,2]
[371711392,1752398594345,-503.15,0.00016438,2]
[371711393,1752398594377,-460.0,0.00016438,2]
[371711394,1752398594406,-460.0,0.00016438,2]
[371711395,1752398594436,-460.0,0.00016438,2]
[371711396,1752398594469,-460.0,0.00016438,2]
[371711397,1752398594501,-534.92,0.00016438,2]
[371711398,1752398594531,-460.0,0.00016438,2]
[371711399,1752398594561,-460.0,0.00016438,2]
[371711400,1752398594592,-460.0,0.00016438,2]
[371711401,1752398594621,-565.92728884,0.00016438,2]
[371711402,1752398594652,-460.0,0.00016438,2]
[371711403,1752398594681,-247.10355832,0.00016438,2]
[371711404,1752398594713,-460.0,0.00016438,2]
[371711405,1752398594743,-460.0,0.00016438,2]
[371711406,1752398594780,-197.79830568,0.00016438,2]
[371711407,1752398595049,-262.20169432,0.00016438,2]
[371711408,1752398595081,-460.0,0.00016438,2]
[371711409,1752398595112,-460.0,0.00016438,2]
[371711410,1752398595143,-460.0,0.00016438,2]
[371711411,1752398595176,-460.0,0.00016438,2]
[371711412,1752398595207,-460.0,0.00016438,2]
[371711413,1752398595351,-555.68,0.00016438,2]
[371711414,1752398595380,-460.0,0.00016438,2]
[371711415,1752398595410,-460.0,0.00016438,2]
[371711416,1752398595442,-460.0,0.00016438,2]
[371711417,1752398595473,-460.0,0.00016438,2]
[371711418,1752398595502,-460.0,0.00016438,2]
[371711419,1752398595533,-460.0,0.00016438,2]
[371711420,1752398595563,-460.0,0.00016438,2]
[371711421,1752398595591,-460.0,0.00016438,2]
[371711422,1752398595619,-460.0,0.00016438,2]
[371711423,1752398595648,-460.0,0.00016438,2]
[371711424,1752398595677,-460.0,0.00016438,2]
[371711425,1752398595706,-460.0,0.00016438,2]
[371711426,1752398595736,-460.0,0.00016438,2]
[371711427,1752398595765,-460.0,0.00016438,2]
[371711428,1752398595794,-320.29071222,0.00016438,2]
[371711429,1752398596472,-243.65518692,0.00016438,2]
[371711430,1752398596504,-460.0,0.00016438,2]
[371711431,1752398596534,-460.0,0.00016438,2]
[371711432,1752398596564,-460.0,0.00016438,2]
[371711433,1752398596593,-460.0,0.00016438,2]
[371711434,1752398596622,-460.0,0.00016438,2]
[371711435,1752398596651,-460.0,0.00016438,2]
[371711436,1752398596680,-460.0,0.00016438,2]
[371711437,1752398596710,-487.57,0.00016438,2]
[371711438,1752398596739,-460.0,0.00016438,2]
[371711439,1752398596771,-460.0,0.00016438,2]
[371711440,1752398596801,-460.0,0.00016438,2]
[371711441,1752398596831,-460.0,0.00016438,2]
[371711442,1752398596861,-460.0,0.00016438,2]
[371711443,1752398596890,-460.0,0.00016438,2]
[371711444,1752398596918,-512.15400389,0.00016473,2]
[371711445,1752398596948,-500.0,0.00016473,2]
[371711446,1752398596977,-500.0,0.00016473,2]
[371711447,1752398597006,-161.17438667,0.00016473,2]
[371711448,1752398597034,-500.0,0.00016473,2]
[371711449,1752398597062,-500.31388984,0.00016473,2]
[371711450,1752398598000,-2340.92207892,0.00016612,2]
[371711451,1752398598281,-4681.84415784,0.00016612,2]
[371711452,1752398598743,-9363.68831568,0.00016612,2]
[371711453,1752398598899,-1272.62336864,0.00016612,2]
[371711454,1752398598934,-460.0,0.00016712,2]
[371711455,1752398598966,-460.0,0.00016712,2]
[371711456,1752398598997,-460.0,0.00016712,2]
[371711457,1752398599029,-460.0,0.00016712,2]
[371711458,1752398599061,-460.0,0.00016712,2]
[371711459,1752398599092,-460.0,0.00016712,2]
[371711460,1752398599123,-460.0,0.00016712,2]
[371711461,1752398599154,-460.0,0.00016712,2]
[371711462,1752398599190,-460.0,0.00016712,2]
[371711463,1752398599222,-460.0,0.00016712,2]
[371711464,1752398599255,-460.0,0.00016712,2]
[371711465,1752398599295,-460.0,0.00016712,2]
[371711466,1752398599327,-460.0,0.00016712,2]
[371711467,1752398599358,-460.0,0.00016712,2]
[371711468,1752398599389,-460.0,0.00016712,2]
[371711469,1752398599421,-460.0,0.00016712,2]
[371711470,1752398599452,-460.0,0.00016712,2]
[371711471,1752398599482,-540.0,0.00016712,2]
[371711472,1752398599514,-198.31326272,0.00016712,2]
[371711473,1752398599855,-338.12673728,0.00016712,2]
[371711474,1752398599888,-188.29,0.00016712,2]
[371711475,1752398599922,-460.0,0.00016712,2]
[371711476,1752398599956,-460.0,0.00016712,2]
[371711477,1752398599986,-460.0,0.00016712,2]
[371711478,1752398600017,-460.0,0.00016712,2]
[371711479,1752398600049,-460.0,0.00016712,2]
[371711480,1752398600078,-460.0,0.00016712,2]
[371711481,1752398600109,-460.0,0.00016712,2]
[371711482,1752398600138,-460.0,0.00016712,2]
[371711483,1752398600168,-460.0,0.00016712,2]
[371711484,1752398600197,-460.0,0.00016712,2]
[371711485,1752398600228,-460.0,0.00016712,2]
[371711486,1752398600258,-460.0,0.00016712,2]
[371711487,1752398600287,-460.0,0.00016712,2]
[371711488,1752398600319,-460.0,0.00016712,2]
[371711489,1752398600350,-460.0,0.00016712,2]
[371711490,1752398600378,-460.0,0.00016712,2]
[371711491,1752398600410,-460.0,0.00016712,2]
[371711492,1752398600440,-460.0,0.00016712,2]
[371711493,1752398600471,-460.0,0.00016712,2]
[371711494,1752398600502,-686.83652544,0.00016712,2]
[371711495,1752398600860,-93.49347456,0.00016712,2]
[371711496,1752398600891,-585.19027895,0.00016712,2]
[371711497,1752398600922,-460.0,0.00016712,2]
[371711498,1752398600955,-460.0,0.00016712,2]
[371711499,1752398600986,-200.44819275,0.00016712,2]
[371711500,1752398601019,-460.0,0.00016712,2]
[371711501,1752398601049,-460.0,0.00016712,2]
[371711502,1752398601078,-460.0,0.00016712,2]
[371711503,1752398601109,-460.0,0.00016712,2]
[371711504,1752398601140,-534.92,0.00016712,2]
[371711505,1752398601169,-556.13422839,0.00016712,2]
[371711506,1752398601199,-460.0,0.00016712,2]
[371711507,1752398601231,-460.0,0.00016712,2]
[371711508,1752398601262,-460.0,0.00016712,2]
[371711509,1752398601292,-460.0,0.00016712,2]
[371711510,1752398601324,-460.0,0.00016712,2]
[371711511,1752398601355,-460.0,0.00016712,2]
[371711512,1752398601385,-460.0,0.00016712,2]
[371711513,1752398601416,-460.0,0.00016712,2]
[371711514,1752398601446,-460.0,0.00016712,2]
[371711515,1752398601477,-460.0,0.00016712,2]
[371711516,1752398601508,-460.0,0.00016712,2]
[371711517,1752398601923,-460.0,0.00016712,2]
[371711518,1752398601957,-460.0,0.00016712,2]
[371711519,1752398601994,-460.0,0.00016712,2]
[371711520,1752398602028,-462.14414731,0.00016712,2]
[371711521,1752398602060,-460.0,0.00016712,2]
[371711522,1752398602093,-467.99936835,0.00016712,2]
[371711523,1752398602127,-460.0,0.00016712,2]
[371711524,1752398602163,-460.0,0.00016712,2]
[371711525,1752398602200,-460.0,0.00016712,2]
[371711526,1752398602231,-500.0,0.00016773,2]
[371711527,1752398602261,-460.0,0.00016986,2]
[371711528,1752398602292,-374.34,0.00016986,2]
[371711529,1752398602323,-460.0,0.00016986,2]
[371711530,1752398602355,-460.0,0.00016986,2]
[371711531,1752398602385,-473.41,0.00016986,2]
[371711532,1752398602416,-780.33,0.00016986,2]
[371711533,1752398602447,-180.0,0.00016986,2]
[371711534,1752398602477,-482.54,0.00016986,2]
[371711535,1752398602508,-460.0,0.00016986,2]
[371711536,1752398602539,-534.92,0.00016986,2]
[371711537,1752398602569,-460.0,0.00016986,2]
[371711538,1752398602730,-460.0,0.00016986,2]
[371711539,1752398602762,-460.0,0.00016986,2]
[371711540,1752398602794,-460.0,0.00016986,2]
[371711541,1752398602826,-460.0,0.00016986,2]
[371711542,1752398602857,-460.0,0.00016986,2]
[371711543,1752398602887,-460.0,0.00016986,2]
[371711544,1752398602918,-460.0,0.00016986,2]
[371711545,1752398602946,-460.0,0.0001726,2]
[371711546,1752398602978,-460.0,0.0001726,2]
[371711547,1752398603010,-460.0,0.0001726,2]
[371711548,1752398603041,-780.33,0.0001726,2]
[371711549,1752398603072,-460.0,0.0001726,2]
[371711550,1752398603103,-534.92,0.0001726,2]
[371711551,1752398603133,-460.0,0.0001726,2]
[371711552,1752398603164,-460.0,0.0001726,2]
[371711553,1752398603194,-460.0,0.0001726,2]
[371711554,1752398603225,-460.0,0.0001726,2]
[371711555,1752398603256,-460.0,0.0001726,2]
[371711556,1752398603286,-460.0,0.0001726,2]
[371711557,1752398603315,-460.0,0.0001726,2]
[371711558,1752398603345,-349.5,0.0001726,2]
[371711559,1752398603787,-110.5,0.0001726,2]
[371711560,1752398603820,-460.0,0.00017534,2]
[371711561,1752398603853,-460.0,0.00017534,2]
[371711562,1752398603883,-780.33,0.00017534,2]
[371711563,1752398603916,-460.0,0.00017534,2]
[371711564,1752398603949,-534.92,0.00017534,2]
[371711565,1752398603983,-460.0,0.00017534,2]
[371711566,1752398604016,-460.0,0.00017534,2]
[371711567,1752398604048,-460.0,0.00017534,2]
[371711568,1752398604083,-445.29,0.00017534,2]
[371711569,1752398604116,-460.0,0.00017534,2]
[371711570,1752398604149,-386.78645765,0.00017534,2]
[371711571,1752398604182,-282.95,0.00017808,2]
[371711572,1752398604215,-460.0,0.00017808,2]
[371711573,1752398604248,-780.33,0.00017808,2]
[371711574,1752398604286,-480.94,0.00017808,2]
[371711575,1752398604321,-534.92,0.00017808,2]
[371711576,1752398604354,-460.0,0.00017808,2]
[371711577,1752398604387,-460.0,0.00017808,2]
[371711578,1752398604421,-460.0,0.00017808,2]
[371711579,1752398604454,-460.0,0.00017808,2]
[371711580,1752398605081,-1109.0670547,0.000179,2]
[371711581,1752398605110,-690.0,0.00017961,2]
[371711582,1752398605142,-460.0,0.00018082,2]
[371711583,1752398605173,-780.33,0.00018082,2]
[371711584,1752398605207,-534.92,0.00018082,2]
[371711585,1752398605238,-460.0,0.00018082,2]
[371711586,1752398605269,-460.0,0.00018082,2]
[371711587,1752398605302,-224.27,0.00018082,2]
[371711588,1752398605331,-460.0,0.00018082,2]
[371711589,1752398605363,-1109.06705453,0.00018176,2]
[371711590,1752398605394,-460.0,0.00018356,2]
[371711591,1752398605426,-780.33,0.00018356,2]
[371711592,1752398605459,-534.92,0.00018356,2]
[371711593,1752398605492,-460.0,0.00018356,2]
[371711594,1752398605523,-460.0,0.00018356,2]
[371711595,1752398605554,-460.0,0.00018356,2]
[371711596,1752398605588,-5.12472701,0.00018452,2]
[371711597,1752398605962,-1103.94232752,0.00018452,2]
[371711598,1752398605995,-460.0,0.0001863,2]
[371711599,1752398606028,-780.33,0.0001863,2]
[371711600,1752398606060,-534.92,0.0001863,2]
[371711601,1752398606091,-460.0,0.0001863,2]
[371711602,1752398606123,-460.0,0.0001863,2]
[371711603,1752398606158,-460.0,0.0001863,2]
[371711604,1752398606191,-1109.06705453,0.00018728,2]
[371711605,1752398606223,-303.45817906,0.000189,2]
[371711606,1752398606255,-460.0,0.00018904,2]
[371711607,1752398606287,-780.33,0.00018904,2]
[371711608,1752398606319,-534.92,0.00018904,2]
[371711609,1752398606350,-460.0,0.00018904,2]
[371711610,1752398606381,-460.0,0.00018904,2]
[371711611,1752398606411,-460.0,0.00018904,2]
[371711612,1752398606442,-218.533037,0.00018935,2]
[371711613,1752398606475,-799.93174925,0.00019003,2]
[371711614,1752398606513,-309.13530528,0.00019003,2]
[371711615,1752398606542,-166.07097787,0.00019076,2]
[371711616,1752398625218,273.8534001,0.000163,2]
[371711617,1752398654446,178.2379939,7.5e-07,2]
[371711626,1752398762366,3966.86593852,0.00016157,2]
[371711627,1752398762389,6033.13406148,0.00016157,2]
[371711628,1752398764333,10109.1518661,0.00016287,2]
[371711633,1752398796319,513.302669,0.00013699,2]
[371711653,1752398923628,170.7374411,0.00015616,2]
[371711692,1752399031978,-300.0,0.00016437,2]
[371711694,1752399031990,-265.0,0.00016437,2]
[371711696,1752399032001,-460.0,0.00016438,2]
[371711698,1752399032011,-353.29992295,0.00016438,2]
[371711758,1752399033685,2930.316437,0.00015943,2]
[371711806,1752399037977,-109.18602034,0.00016438,2]
[371711808,1752399037988,-519.73450156,0.00016438,2]
[371711810,1752399037999,-460.0,0.00016438,2]
[371711812,1752399038010,-460.0,0.00016438,2]
[371711814,1752399038022,-460.0,0.00016438,2]
[371711816,1752399038033,-460.0,0.00016438,2]